[Event "Israeli Championship 2022"]
[Site "Yosiah Arad"]
[Date "2022.12.08"]
[Round "4.9"]
[White "Erenberg, Ariel"]
[Black "Streltsov, Alexey"]
[Result "1-0"]
[ECO "D10"]
[WhiteElo "2514"]
[BlackElo "2313"]
[Annotator "TA"]
[PlyCount "137"]
[EventDate "2022.12.05"]
[EventType "swiss"]
[EventCountry "ISR"]
[SourceTitle "playchess.com"]
[Source "ChessBase"]
[SourceQuality "1"]
[TimeControl "40/5400+30:1800+30"]

{[%evp 16,137,-4,-4,0,0,-11,-28,-1,-18,0,0,0,0,33,22,47,55,47,38,38,23,42,54,77,47,51,47,91,75,74,62,109,25,25,25,25,25,25,25,18,17,18,18,17,-32,-17,-53,-50,-86,-84,-194,-181,-194,-68,-49,48,47,48,48,48,48,48,48,47,55,63,0,0,0,0,0,0,0,0,0,0,0,0,0,0,0,235,211,1501,1089,1133,317,256,252,29963,29963,29964,29964,29963,29964,29964,29964,5100,2912,29980,29981,29981,29982,29982,29983,29983,29983,29983,29984,29984,29985,29988,29977,29985,29986,29982,29983,29983,29983,29984,29985,29985,29986]} 1. d4 {[%emt 0:00:09]} d5 {[%emt 0:00:07]} 2. c4 {[%emt 0:00:35]} dxc4 {[%emt 0:00:06]} 3. e4 {[%emt 0:01:09]} b5 {[%emt 0:00:09][%cal Bb7b5,Bb5b4][%mdl 32]} 4. a4 {[%emt 0:01:23]} c6 {[%emt 0:00:06]} 5. Nc3 {[%emt 0:04:07]} b4 {[%emt 0:00:09]} 6. Na2 {[%emt 0:01:39]} Nf6 {[%emt 0:00:10]} 7. e5 {[%emt 0:03:22]} Nd5 {[%emt 0:00:06]} 8. Bxc4 {[%emt 0:00:07]} e6 {[%emt 0:00:15]} 9. Nf3 {[%emt 0:08:42]} Be7 {[%emt 0:00:12] Prevents Bg5. D10: Slav Defence: 3 cxd5 (without early Nf3) and 3 Nc3.} 10. O-O {[%emt 0:00:08]} a5 {[%emt 0:00:10]} 11. Bd2 {[%emt 0:04:04]} Ba6 {[%emt 0:00:47] Black has an edge.} 12. Qc2 {[%emt 0:05:19]} Bxc4 {[%emt 0:17:42]} (12... O-O {is more complex.} 13. Nc1 Nd7 14. Bxa6 Rxa6 15. Qd3 Ra8) 13. Qxc4 {[%emt 0:00:03]} Nb6 {[%emt 0:00:10]} 14. Qc2 {[%emt 0:01:35] [#]} h6 $146 {[%emt 0:00:24]} (14... Qd5 $5 {[%cal Rb4b3]} 15. Nc1 N8d7 $11) ({Predecessor:} 14... Qd5 15. Nc1 c5 16. dxc5 Qxc5 17. Qxc5 Bxc5 18. Nb3 Be7 19. Rfc1 Kd7 20. Be3 Nd5 {½-½ (77) Mchedlishvili,M (2609)-Naumann,A (2543) Dresden 2007}) 15. Nc1 {[%emt 0:00:54]} Qc7 {[%emt 0:00:13]} (15... O-O {keeps more tension.} 16. Nb3 Qd5 17. Rfc1 Rc8) 16. Nb3 {[%emt 0:16:19]} O-O {[%emt 0:00:10]} 17. Rfc1 {[%emt 0:00:04]} Rc8 {[%emt 0:00:13]} 18. Ne1 {[%emt 0:03:41]} (18. Qe4 {looks sharper.} N8d7 19. Be3 Nd5 20. Rc2) 18... N8d7 {[%emt 0:00:10]} 19. Nd3 {[%emt 0:02:44] Against c5} Qa7 {[%emt 0:00:30]} 20. Qd1 {[%emt 0:03:36]} Nd5 {[%emt 0:16:52]} 21. Qg4 {[%emt 0:00:46]} Kf8 {[%emt 0:01:33]} 22. Rc2 {[%emt 0:04:10]} Rc7 {[%emt 0:04:32]} 23. Rac1 {[%emt 0:01:27] White is more active.} Rac8 {[%emt 0:00:52]} (23... N7b6 $14 {was preferrable.}) 24. Nbc5 {[%emt 0:04:49]} ({White should play} 24. f4 $16) 24... Nxc5 {[%emt 0:02:57]} 25. Nxc5 {[%emt 0:00:08]} Bxc5 {[%emt 0:00:45]} 26. Rxc5 {[%emt 0:00:05]} Ne7 {[%emt 0:01:52]} 27. Qe4 {[%emt 0:00:41]} Kg8 {[%emt 0:06:57] Inhibits Qh7+.} 28. h4 {[%emt 0:03:01]} Rd7 {[%emt 0:02:21]} 29. h5 {[%emt 0:00:39]} Rd5 {[%emt 0:03:37]} 30. R5c4 {[%emt 0:01:05]} (30. b3 $11) 30... Qd7 $15 {[%emt 0:10:28][%cal Oc6c5]} 31. Be3 {[%emt 0:05:45] Against c5} c5 $1 {[%emt 0:01:13]} 32. dxc5 {[%emt 0:02:14]} Qxa4 {[%emt 0:01:22]} 33. Qf3 {[%emt 0:02:51]} (33. Qg4 $17 {keeps fighting.} Nf5 34. c6) 33... Nc6 $19 {[%emt 0:07:47]} (33... Rxe5 34. Qb7 Qe8 35. c6 $17) 34. Qg3 {[%emt 0:02:40]} Rd1+ {[%emt 0:06:53]} (34... Rxe5 $2 35. Bxh6 g6 36. hxg6 $18) (34... Kh7 $19 {Hoping for ...Qb3.} 35. R4c2 Qb3) 35. Kh2 $15 {[%emt 0:00:05]} Rxc1 {[%emt 0:00:21]} (35... Ne7 $1 $15 36. Qg4 (36. Bxh6 Nf5 $11) 36... Rxc1 37. Rxc1 (37. Bxh6 Nf5 $11) 37... Nf5) 36. Bxh6 $14 {[%emt 0:02:49][%csl Gh6][%cal Rg3g7]} Rh1+ $1 {[%emt 0:00:04]} (36... Rxc4 $2 37. Qxg7#) 37. Kxh1 {[%emt 0:00:05][%csl Gh6][%cal Rg3g7] The board is on fire.} Qd1+ {[%emt 0:00:04]} 38. Kh2 {[%emt 0:00:10][%csl Gh6][%cal Rg3g7]} Qxh5+ {[%emt 0:00:03]} 39. Rh4 {[%emt 0:00:09][%csl Gh6][%cal Rg3g7]} Qxe5 {[%emt 0:00:39]} 40. f4 $1 {[%emt 0:01:31]} Qxb2 {[%emt 0:00:31] [#] Strongly threatening ...Ne7.} (40... Qxc5 $2 41. Qxg7#) 41. Bg5 $40 {[%emt 0:43:28][%mdl 128] Inhibits Ne7. White attacks.} (41. Bxg7 $1 $14 Qxg7 42. Rg4 Qxg4 43. Qxg4+ Kf8 44. Qe2) 41... f6 {[%emt 0:41:22]} 42. Rh8+ $1 {[%emt 0:00:00][%mdl 64] Decoy} Kxh8 {[%emt 0:00:00]} 43. Qh3+ {[%emt 0:00:00]} Kg8 {[%emt 0:00:00]} 44. Qxe6+ {[%emt 0:00:00]} Kh7 {[%emt 0:00:00]} 45. Qf5+ {[%emt 0:00:00]} Kg8 {[%emt 0:00:00]} 46. Qxc8+ $11 {[%emt 0:00:00][%mdl 4096] Endgame KQB-KQN} Kh7 {[%emt 0:00:00]} 47. Qf5+ {[%emt 0:00:00]} Kg8 {[%emt 0:00:00]} 48. Qe6+ {[%emt 0:00:00]} Kh8 $2 {[%emt 0:00:00]} (48... Kh7 $11 {and Black has nothing to worry.}) 49. Qxc6 $18 {[%emt 0:00:00] Qc8+ is the strong threat.} fxg5 $2 {[%emt 0:00:00] KQ-KQ} (49... b3 50. Qc8+ Kh7 51. Qh3+ Kg8 52. Qc8+ Kh7 53. Qh3+ Kg8 54. Qe6+ Kh8 55. Qh3+ (55. Qe8+ Kh7 $16) 55... Kg8) 50. Qc8+ {[%emt 0:00:00]} Kh7 {[%emt 0:00:00]} 51. Qf5+ $2 {[%emt 0:00:00]} (51. c6) 51... g6 {[%emt 0:00:00]} 52. Qd7+ {[%emt 0:00:00]} Kh6 $2 {[%emt 0:01:26]} (52... Kg8 $18 53. Qd8+ Kf7) 53. c6 {[%emt 0:00:00][%cal Bc5c6,Bc6c7][%mdl 32]} Qc1 {[%emt 0:00:21]} 54. c7 {[%emt 0:05:27]} Qxf4+ {[%emt 0:01:01]} 55. Kg1 $1 {[%emt 0:00:06]} ({Weaker is} 55. g3 Qf2+ 56. Kh3 Qf1+ 57. Kh2 Qf2+ 58. Kh3 Qf1+ 59. Kh2 Qf2+ $11) 55... Qe3+ {[%emt 0:09:24]} 56. Kf1 $1 {[%emt 0:00:19]} ({And not} 56. Kh2 Qe5+ 57. g3 Qe2+ 58. Kh3 Qf1+ 59. Kh2 Qe2+ 60. Kg1 Qe1+ 61. Kh2 Qe2+ $11) 56... Qf4+ {[%emt 0:00:01]} 57. Ke2 $1 {[%emt 0:00:22] White threatens Qh3+ and mate.} Qe5+ {[%emt 0:00:17]} 58. Kd3 $1 {[%emt 0:00:38] White mates.} Qc3+ {[%emt 0:00:22] [#]} 59. Ke4 $1 {[%emt 0:00:15]} Qc2+ {[%emt 0:00:41]} 60. Ke5 {[%emt 0:00:30]} Qc5+ {[%emt 0:00:53]} 61. Kf6 {[%emt 0:00:43][%cal Rd7h3]} Qf8+ {[%emt 0:00:20] [#]} 62. Ke6 $1 {[%emt 0:00:09]} Qf5+ {[%emt 0:00:08]} 63. Kd6 {[%emt 0:00:17]} Qd3+ {[%emt 0:00:35]} 64. Kc6 {[%emt 0:01:33]} Qa6+ {[%emt 0:01:04]} 65. Kc5 {[%emt 0:00:08]} Qa7+ {[%emt 0:00:02]} 66. Kb5 {[%emt 0:02:12]} Qb7+ {[%emt 0:00:17]} 67. Ka4 {[%emt 0:01:30]} b3 {[%emt 0:00:38]} 68. Qh3+ {[%emt 0:00:06]} (68. c8=R $2 Qb4#) 68... Kg7 {[%emt 0:00:07]} 69. Qc3+ {[%emt 0:00:03] Never resign too early!   Weighted Error Value: White=0.24 (precise) /Black=0.43} (69. c8=R $2 Qb4#) 1-0

[Event "Israeli Championship 2022"]
[Site "Yosiah Arad"]
[Date "2022.12.08"]
[Round "4.10"]
[White "Rozen, Eytan"]
[Black "Shohat, Yotam"]
[Result "1-0"]
[ECO "B07"]
[WhiteElo "2459"]
[BlackElo "2294"]
[Annotator "TA"]
[PlyCount "97"]
[EventDate "2022.12.05"]
[EventType "swiss"]
[EventCountry "ISR"]
[SourceTitle "playchess.com"]
[Source "ChessBase"]
[SourceQuality "1"]
[TimeControl "40/5400+30:1800+30"]

{[%evp 10,97,14,13,14,0,0,0,0,7,4,0,12,0,0,0,12,0,5,13,10,0,35,33,32,35,39,-12,-5,-12,0,0,0,0,0,0,0,0,3,0,0,0,0,0,0,0,0,0,40,37,53,21,434,434,434,428,372,257,254,250,333,302,360,302,340,284,706,696,765,508,508,500,500,492,457,389,389,389,389,389,492,492,486,486,654,645,1297,1284,1587,1535]} 1. d4 {[%emt 0:00:36]} Nf6 {[%emt 0:00:06]} 2. Nf3 {[%emt 0:00:06]} g6 {[%emt 0:01:03]} 3. Nbd2 {[%emt 0:01:02]} Bg7 {[%emt 0:02:15]} 4. e4 {[%emt 0:00:07]} O-O {[%emt 0:00:07]} 5. Bd3 {[%emt 0:00:05]} d6 {[%emt 0:00:12]} 6. O-O {[%emt 0:00:07]} c5 {[%emt 0:02:48] B07: Pirc Defence: Miscellaneous Systems.} 7. dxc5 {[%emt 0:06:10]} dxc5 {[%emt 0:00:09]} 8. Qe2 {[%emt 0:05:50]} Nc6 {[%emt 0:00:45] The position is equal.} 9. c3 {[%emt 0:00:07]} Qc7 {[%emt 0:00:16]} (9... Nh5 $5 {[%cal Rh5f4]} 10. Nb3 b6 $11) 10. a4 {[%emt 0:01:28]} Rd8 {[%emt 0:01:49]} (10... Nh5 $5 {[%cal Rh5f4]}) 11. Nc4 {[%emt 0:02:10]} Nh5 {[%emt 0:11:33]} 12. Rd1 {[%emt 0:09:16] [#]} Be6 $146 {[%emt 0:05:28][%cal Od8d3]} ({Predecessor:} 12... b6 13. Be3 Bb7 14. Qc2 Nf6 15. Bg5 h6 16. Bxf6 Bxf6 17. Ne3 e6 18. Be2 h5 19. Rxd8+ Rxd8 {0-1 (43) Kleibel,U (2114)-Istratescu,A (2651) Deizisau 2013}) 13. Be3 {[%emt 0:09:54]} Nf4 {[%emt 0:04:44]} 14. Bxf4 {[%emt 0:01:24]} Qxf4 {[%emt 0:00:42]} 15. g3 {[%emt 0:01:14]} Qg4 {[%emt 0:07:28][%cal Od8d3]} 16. Ne3 {[%emt 0:03:47] Pair of Knights!} Qh5 {[%emt 0:00:20][%cal Od8d3] ...Rxd3! is the strong threat.} 17. Bc4 {[%emt 0:00:12]} Bh3 {[%emt 0:03:42]} 18. Rxd8+ {[%emt 0:09:52]} (18. a5 $14) 18... Rxd8 $11 {[%emt 0:00:04]} 19. Rd1 {[%emt 0:00:11]} Rxd1+ {[%emt 0:14:47]} 20. Qxd1 {[%emt 0:00:02]} Bh6 {[%emt 0:01:06]} 21. Nd5 {[%emt 0:03:24]} Bg4 {[%emt 0:05:31]} 22. Be2 {[%emt 0:00:59]} Kg7 {[%emt 0:01:03]} 23. Nc7 {[%emt 0:02:18]} Bc1 {[%emt 0:11:54]} 24. h3 {[%emt 0:00:57]} (24. h4 {keeps more tension.} Bxb2 25. Ng5 Bxe2 26. Qd5) 24... Bxf3 {[%emt 0:00:42]} 25. Bxf3 {[%emt 0:00:05]} Qg5 {[%emt 0:07:24]} 26. e5 {[%emt 0:08:48]} Nxe5 {[%emt 0:03:35]} 27. Bxb7 {[%emt 0:01:06]} Bxb2 {[%emt 0:02:46]} 28. Ne8+ {[%emt 0:03:30]} Kh6 {[%emt 0:03:32]} 29. Kg2 {[%emt 0:00:02]} Bc1 {[%emt 0:03:42]} (29... Bxc3 30. f4 Qf5 31. fxe5 Bxe5 32. Qc1+ g5 33. Qxc5 $16) 30. Qd8 {[%emt 0:02:15] aiming for h4.} (30. Qd5 {looks sharper.} Qf5 31. Qxc5 Qd7 32. Qxe5 Qxb7+ 33. Kg1) 30... Nc4 $2 {[%emt 0:02:26][%mdl 8192] [#] A mistake that costs the game.} (30... Be3 $1 $11 {and Black stays safe.} 31. fxe3 Qxe3) 31. Nd6 $1 $18 {[%emt 0:00:10][%mdl 576] Intending Qf8+ and mate.} Ne3+ {[%emt 0:03:27]} (31... exd6 {is a self mate.} 32. Qf8+ Kh5 33. Bf3+ (33. Qxf7 Ne5 $18)) 32. fxe3 {[%emt 0:00:03] Qf8+ would kill now.} Kg7 {[%emt 0:00:22] Inhibits Qf8+.} 33. Nc4 {[%emt 0:10:23] Black must now prevent Qd1.} Bxe3 {[%emt 0:00:09]} 34. Qd5 {[%emt 0:00:47]} Qxd5+ {[%emt 0:00:51]} 35. Bxd5 {[%emt 0:00:02]} Bg5 {[%emt 0:00:08]} 36. Ne5 {[%emt 0:00:37][%cal Oe5c6] And now Nc6! would win.} e6 {[%emt 0:00:31]} 37. Bc4 {[%emt 0:00:05] Threatens to win with Nc6.} Bf6 $2 {[%emt 0:00:49]} (37... Bd8 38. Nc6 Bb6) 38. Nc6 {[%emt 0:00:07]} Bxc3 {[%emt 0:00:06]} 39. Nxa7 {[%emt 0:00:10]} Kf8 {[%emt 0:00:33]} 40. Nc6 {[%emt 0:01:21] Hoping for a5.} Ke8 {[%emt 0:00:05]} 41. Bb5 {[%emt 0:30:48]} Kd7 {[%emt 0:30:08]} 42. Ne5+ {[%emt 0:00:46]} Kd6 {[%emt 0:00:09]} 43. Nc4+ {[%emt 0:01:32]} ({Don't play} 43. Nxf7+ Kd5 44. Ng5 h6 $18) 43... Kc7 {[%emt 0:00:08]} 44. Be8 {[%emt 0:02:20]} f5 {[%emt 0:00:00]} 45. Bf7 {[%emt 0:00:00] White is clearly winning.} e5 {[%emt 0:00:00]} 46. Bg8 {[%emt 0:00:00]} h5 {[%emt 0:00:00]} 47. Bh7 {[%emt 0:00:00]} Kc6 {[%emt 0:00:00]} 48. Bxg6 {[%emt 0:00:00]} Kd5 {[%emt 0:00:00] [#]} 49. a5 $1 {[%emt 0:00:00] Weighted Error Value: White=0.16 (very precise) /Black=0.26 (precise)} 1-0

[Event "Israeli Championship 2022"]
[Site "Yosiah Arad"]
[Date "2022.12.08"]
[Round "4.11"]
[White "Zemach, Nadav"]
[Black "Tzidkiya, Yeshaayahu"]
[Result "1-0"]
[ECO "E62"]
[WhiteElo "2402"]
[BlackElo "2444"]
[Annotator "TA"]
[PlyCount "48"]
[EventDate "2022.12.05"]
[EventType "swiss"]
[EventCountry "ISR"]
[SourceTitle "playchess.com"]
[Source "ChessBase"]
[SourceQuality "1"]
[TimeControl "40/5400+30:1800+30"]

{[%evp 14,48,13,0,56,55,53,34,40,22,56,25,26,21,32,48,45,22,60,39,45,0,43,-21,-24,-93,-108,-337,-350,-368,-376,-382,-360,-360,-343,-330,-337]} 1. d4 {[%emt 0:00:03]} Nf6 {[%emt 0:00:06]} 2. c4 {[%emt 0:00:03]} g6 {[%emt 0:00:02]} 3. g3 {[%emt 0:00:03]} Bg7 {[%emt 0:00:03]} 4. Bg2 {[%emt 0:00:05]} O-O {[%emt 0:00:05]} 5. Nc3 {[%emt 0:00:03]} d6 {[%emt 0:00:05]} 6. Nf3 {[%emt 0:00:05]} Bf5 {[%emt 0:00:05]} 7. Nh4 {[%emt 0:03:17]} Bc8 {[%emt 0:00:05]} 8. Nf3 {[%emt 0:01:32][%cal Bh4f3,Bf3e1,Be1d3][%mdl 32]} Qe8 {[%emt 0:00:37] 8...c6 is the modern continuation. E62: King's Indian: Fianchetto: 6...c6 and Panno Variation (6...Nc6) without ...a6.} (8... Bf5 $11) 9. O-O {[%emt 0:01:53]} e5 {[%emt 0:00:08]} 10. e4 {[%emt 0:02:57]} Bg4 {[%emt 0:00:58] White is slightly better.} 11. d5 {[%emt 0:01:11]} Na6 {[%emt 0:03:51]} 12. h3 {[%emt 0:01:43]} Bd7 {[%emt 0:01:50]} 13. Ne1 {[%emt 0:02:11]} Nh5 {[%emt 0:02:23]} 14. Nd3 {[%emt 0:04:43]} f5 {[%emt 0:27:47][%cal Bf7f5,Bf5f4,Bf4g3][%mdl 32] [#]} 15. Re1 $146 {[%emt 0:05:39]} ({Predecessor:} 15. b4 Nf6 16. Kh2 Qc8 17. f3 c6 18. dxc6 bxc6 19. Ba3 Nc7 20. c5 d5 21. Nxe5 f4 22. g4 Nxg4+ 23. hxg4 Bxe5 {0-1 (28) Raznikov,D (2490)-Ipatov,A (2614) Yerevan 2014}) 15... b6 {[%emt 0:27:46]} 16. b4 {[%emt 0:02:55]} Nf6 {[%emt 0:08:35]} 17. Kh2 {[%emt 0:06:37]} Qc8 {[%emt 0:11:55]} 18. h4 {[%emt 0:09:33]} ({White should play} 18. exf5 $14 Bxf5 19. a3) 18... f4 $11 {[%emt 0:02:47]} 19. Bf3 {[%emt 0:15:08]} (19. Rb1 $11 {keeps the balance.}) 19... Bg4 $17 {[%emt 0:08:50]} 20. Kg1 $2 {[%emt 0:10:45] [#] Now White is beyond hope.} (20. Rg1 $17 {was called for.}) 20... fxg3 $1 $19 {[%emt 0:01:08] White must now prevent ...Bxf3.} 21. Bxg4 {[%emt 0:00:10]} Qxg4 {[%emt 0:00:35]} (21... Nxg4 $2 {loses.} 22. fxg3 Nxb4 23. Re2 $19 (23. Nxb4 $2 {is the wrong capture.} Nf2 $19)) 22. Qxg4 {[%emt 0:00:11]} Nxg4 {[%emt 0:00:02][%cal Bf6g4,Bg4f2,Bf2d3][%mdl 32]} 23. Kg2 {[%emt 0:01:21] Prevents Rf3.} Nxf2 {[%emt 0:00:10]} ({Not} 23... gxf2 24. Rf1 $19) 24. Re3 {[%emt 0:00:42]} Nxd3 {[%emt 0:00:00][%mdl 32768] Weighted Error Value: White=0.41/Black=0.15 (very precise) . Loss on time!?} 1-0

[Event "Israeli Championship 2022"]
[Site "Yosiah Arad"]
[Date "2022.12.08"]
[Round "4.12"]
[White "Barak, Gil"]
[Black "Aizenberg, Benny"]
[Result "0-1"]
[ECO "B90"]
[WhiteElo "2147"]
[BlackElo "2375"]
[Annotator "TA"]
[PlyCount "104"]
[EventDate "2022.12.05"]
[EventType "swiss"]
[EventCountry "ISR"]
[SourceTitle "playchess.com"]
[Source "ChessBase"]
[SourceQuality "1"]
[TimeControl "40/5400+30:1800+30"]

{[%evp 21,104,14,23,-9,-6,-57,0,0,0,-140,-53,-190,-171,-186,-185,-184,-172,-185,-186,-181,-179,-189,-165,-159,-159,-143,-150,-166,-152,-183,-179,-163,-163,-348,-271,-284,-275,-275,-270,-337,-325,-322,-244,-446,-443,-441,-414,-647,-634,-805,-772,-778,-778,-12838,-12839,-12838,-12839,-12837,-12827,-12825,-12827,-12828,-12828,-1775,-12829,-12829,-12830,-12830,-12831,-12831,-12831,-12831,-12831,-12827,-12829,-12826,-12827,-12843,-12843,-12846,-12847,-12847,-12847,-12848,-12848]} 1. e4 {[%emt 0:00:03]} c5 {[%emt 0:00:05]} 2. Nf3 {[%emt 0:00:03]} d6 {[%emt 0:00:04]} 3. d4 {[%emt 0:00:03]} cxd4 {[%emt 0:00:02]} 4. Nxd4 {[%emt 0:00:06]} Nf6 {[%emt 0:00:05]} 5. Nc3 {[%emt 0:00:06]} a6 {[%emt 0:00:03]} 6. f3 {[%emt 0:00:03]} e5 {[%emt 0:00:03]} 7. Nb3 {[%emt 0:00:03]} Be7 {[%emt 0:00:04]} 8. Be3 {[%emt 0:00:03]} Be6 {[%emt 0:00:03]} 9. Qd2 {[%emt 0:00:07]} Nbd7 {[%emt 0:00:04]} 10. g4 {[%emt 0:00:21][%cal Bg2g4,Bg4g5][%mdl 32]} b5 {[%emt 0:00:08]} 11. g5 {[%emt 0:00:20]} Nh5 {[%emt 0:00:12]} 12. Nd5 {[%emt 0:04:38] B90: Sicilian Najdorf: Unusual White 6th moves, 6 Be3 Ng4 and 6 Be3 e5.} Bxd5 {[%emt 0:01:01]} 13. exd5 {[%emt 0:00:07]} (13. Qxd5 $11 O-O 14. Qd2) 13... h6 {[%emt 0:05:29]} ({Black should try} 13... Nf4 $1 $15) 14. gxh6 $11 {[%emt 0:28:34] The position is equal.} Bh4+ {[%emt 0:00:07] [#]} 15. Bf2 $146 {[%emt 0:01:56]} (15. Kd1 $11) ({Predecessor:} 15. Kd1 g6 16. a4 Qf6 17. Be2 O-O 18. Kc1 Nf4 19. Bf1 Bg5 20. Kb1 b4 21. a5 {0-1 (40) Blimke,D (2280)-Dworakowska,J (2325) Wroclaw 1999}) 15... Bg5 {[%emt 0:04:04]} (15... gxh6 16. a4 $15) (15... Rxh6 $17 {Hoping for ...Nb6.} 16. a4 Nf4 17. axb5 Bxf2+ 18. Qxf2 axb5 19. Rxa8 Qxa8 20. Bxb5 Qxd5) 16. Be3 {[%emt 0:02:33] Prevents Nb6. White does not recover from this.} ({Better is} 16. Qa5 $15) 16... Bxe3 $19 {[%emt 0:00:29]} (16... gxh6 17. O-O-O $15) (16... Bxh6 17. O-O-O) 17. Qxe3 {[%emt 0:00:05]} Qh4+ {[%emt 0:00:09]} (17... gxh6 18. O-O-O $17) 18. Qf2 {[%emt 0:00:39]} Qxf2+ {[%emt 0:00:18]} 19. Kxf2 {[%emt 0:00:01]} Rxh6 {[%emt 0:00:02]} 20. a4 {[%emt 0:10:40] [#]} b4 {[%emt 0:02:00]} 21. Na5 {[%emt 0:03:08]} Nf4 {[%emt 0:03:28]} 22. Nc4 {[%emt 0:09:16]} Ke7 {[%emt 0:06:10]} 23. Ne3 {[%emt 0:04:19]} g6 {[%emt 0:02:56] Prevents Nf5+. Black has more active pieces. The white rooks are badly placed.} 24. a5 {[%emt 0:04:14]} Nc5 {[%emt 0:02:17] Pair of Knights!} 25. b3 {[%emt 0:07:02]} Rah8 {[%emt 0:02:52]} 26. Kg3 {[%emt 0:01:45]} f5 {[%emt 0:01:11]} 27. Rd1 $2 {[%emt 0:02:55]} (27. h3) 27... Rh4 {[%emt 0:02:34]} 28. Ng2 {[%emt 0:06:35]} Rh3+ {[%emt 0:03:42]} 29. Kf2 {[%emt 0:00:01] [#] Threatens to win with Nxf4.} Nxg2 {[%emt 0:00:28]} (29... Rxh2 30. Rxh2 Rxh2 31. Kg1 Nxg2 32. Kxh2 $15) 30. Kxg2 {[%emt 0:00:26]} Kf6 {[%emt 0:00:48]} 31. Bc4 {[%emt 0:04:22]} Kg5 {[%emt 0:04:31]} 32. c3 $2 {[%emt 0:03:49]} (32. Rde1 {might work better.}) 32... bxc3 {[%emt 0:00:06] And now ...e4 would win.} 33. Rc1 {[%emt 0:00:57]} e4 {[%emt 0:03:27]} 34. fxe4 {[%emt 0:06:57]} (34. Rxc3 $142 Kf4 35. Be2) 34... fxe4 {[%emt 0:00:09] Black is clearly winning.} 35. b4 {[%emt 0:00:59]} Nd3 {[%emt 0:00:08]} 36. Bxd3 {[%emt 0:00:33]} Rxd3 {[%emt 0:00:05][%mdl 4096] Endgame KRR-KRR} (36... exd3 $2 37. Rxc3 Kf4 38. b5 axb5 39. Rb3 $19) 37. Rc2 {[%emt 0:00:37]} Rd2+ {[%emt 0:00:47]} (37... Rxd5 $2 38. Rxc3 Rb8 39. Rb3 $19) 38. Rxd2 {[%emt 0:00:02]} cxd2 {[%emt 0:00:07] KR-KR} 39. Rd1 {[%emt 0:00:56]} e3 {[%emt 0:00:05]} 40. Kf3 {[%emt 0:00:32] Against e2} Rh3+ {[%emt 0:00:05]} ({Weaker is} 40... Rxh2 41. Kxe3 Kf5 42. Rxd2 $11) 41. Ke2 {[%emt 0:00:58]} Kf4 {[%emt 0:00:07]} ({And not} 41... Rxh2+ 42. Kxe3 Kf5 43. Rxd2 $11) 42. Kd3 {[%emt 0:07:30]} Rxh2 {[%emt 0:00:27]} 43. Rf1+ {[%emt 0:09:25]} Rf2 {[%emt 0:03:36]} 44. Ra1 {[%emt 0:11:00]} Kf3 {[%emt 0:00:45]} 45. b5 {[%emt 0:00:42]} axb5 {[%emt 0:00:19] ( -> ...b4)} 46. a6 {[%emt 0:00:31]} d1=N {[%emt 1:27:48]} 47. Rxd1 {[%emt 0:00:16]} Ra2 {[%emt 0:00:00]} 48. Rf1+ {[%emt 0:01:28]} Kg2 {[%emt 0:00:00]} 49. Rf6 {[%emt 0:02:13]} e2 {[%emt 0:00:00]} ({Not} 49... Rxa6 50. Rxg6+ Kf3 51. Rf6+ Kg4 52. Kxe3 $11) 50. Rxg6+ {[%emt 0:00:29]} Kf1 {[%emt 0:00:00]} 51. Rf6+ {[%emt 0:00:43]} Ke1 {[%emt 0:00:00]} 52. Rh6 {[%emt 0:00:48]} Kd1 {[%emt 0:00:00] Weighted Error Value: White=0.69/Black=0.11 (very precise)} 0-1